Cogmind - Beta 16.1 @@@ ROGUE MODE // 2026.04.20 @ 18:37:56 Player: SunShine214 Result: Destroyed by H-77 Assassin with Coil Gun Performance ------------- Evolutions (6) 3000 Regions Visited (12) 2400 Robots Destroyed (148) 740 Value Destroyed (5969) 5969 Prototype IDs (6) 120 Alien Tech Used (0) 0 Bonus (2790) 2790 TOTAL SCORE: 15019 Bonus ------- High Alert Combat Kills 218 Follower Combat Kills 1747 Entered Garrisons 200 Used RIF Installer 500 Network Hubs Disabled 200 Friendly Fire -75 Cogmind --------- Core Integrity 0/1150 Matter 288/300 Energy 68/100 System Corruption 30% Temperature Cool (0) Movement Hovering (60) Location -4/Factory Parts ------- > --- POWER (2) -------- (None) > --- PROPULSION (4) --- Antigrav System Improved Gyrokinetic Inverter > --- UTILITY (7) ------ Improved Signal Interpreter > --- WEAPON (6) ------- Vibroblade Vibroblade > --- INVENTORY (5) ---- Particle Reactor Large Storage Unit Improved Remote Datajack Improved Plasma Cutter Chainsword Peak State ------------ > --- POWER ------------ Neutrino Core > --- PROPULSION ------- Centrium Heavy Treads Centrium Heavy Treads > --- UTILITY ---------- Large Storage Unit Enhanced Optical Array Improved Signal Interpreter Improved Hacking Suite Improved Hacking Suite Relay Coupler [Grunt] > --- WEAPON ----------- Advanced KE Penetrator 1B-0RG's Assimilator > --- INVENTORY -------- Quantum Reactor Improved Medium Treads Centrium Heavy Treads Myomer Leg Layered Medium Armor Plating Hacking Suite Improved Recalibrator Wave Gun Hypervelocity Gauss Cannon Heavy Missile Launcher Remote Datajack Improved Remote Datajack Chainsword Ripper [Rating: 145] Favorites ----------- Power Meta Core Engine Light Ion Engine Power Core Meta Core Reactor Light Antimatter Reactor Propulsion Light Treads Treads Light Treads Leg Flexi-carbon Leg Wheel Armored Huge Wheel Hover Unit Airjet Flight Unit Flight Unit Utility Large Storage Unit Device Sensor Array Storage Large Storage Unit Processor Improved Signal Interpreter Hackware Improved Hacking Suite Protection Light Armor Plating Weapon Advanced Beam Cannon Energy Gun Field Laser Energy Cannon Advanced Beam Cannon Ballistic Gun Light Assault Rifle Ballistic Cannon Hypervelocity Gauss Cannon Launcher Grenade Launcher Special Weapon Remote Datajack Impact Weapon Makeshift Hammer Slashing Weapon Vibroblade Special Melee Weapon 1B-0RG's Assimilator Build | -11 -10 -10 -8 -8 -7 -6 -5 -5 -5 -5 -5 -4 ------- Run | Yrd Mat Sub Mat Gar Fac Fac Fac Ext Cet Arc Hub Fac Slots Evolved 12 | . . . 4 . 2 2 2 . . . . 2 Power 1 | . . . . . . . . . . . . 1 Propulsion 2 | . . . 1 . . . 1 . . . . . Utility 5 | . . . 2 . 1 . 1 . . . . 1 Weapon 4 | . . . 1 . 1 2 . . . . . . Parts Attached 118 | 7 8 10 11 8 13 5 5 6 5 1 7 32 Power 14 | 1 1 1 . . 1 1 . 1 1 . 1 6 Engine 4 | 1 1 . . . 1 1 . . . . . . Core 4 | . . 1 . . . . . 1 1 . 1 . Reactor 6 | . . . . . . . . . . . . 6 Propulsion 33 | 2 2 3 4 1 5 1 2 1 2 . 2 8 Treads 17 | 2 2 1 4 1 . . 1 . 2 . . 4 Leg 2 | . . . . . . . 1 . . . . 1 Wheel 3 | . . . . . . 1 . 1 . . . 1 Hover 8 | . . . . . 4 . . . . . 2 2 Flight 3 | . . 2 . . 1 . . . . . . . Utility 33 | 2 1 3 4 2 5 2 2 2 . 1 2 7 Device 9 | 1 . 1 2 . 1 . 1 . . . . 3 Storage 4 | 1 1 . . . 1 . . 1 . . . . Processor 6 | . . 1 1 2 1 1 . . . . . . Hackware 6 | . . . . . 2 1 . 1 . 1 . 1 Protection 8 | . . 1 1 . . . 1 . . . 2 3 Artifact . | . . . . . . . . . . . . . Weapon 38 | 2 4 3 3 5 2 1 1 2 2 . 2 11 Energy Gun 6 | . . . . . . . . . 1 . . 5 Energy Cannon 9 | . 3 1 3 2 . . . . . . . . Ballistic Gun 6 | 2 . . . 1 . . . . 1 . . 2 Ballistic Cannon 3 | . . . . . . . . . . . 1 2 Launcher 4 | . . 2 . 1 . . . 1 . . . . Special Weapon 3 | . 1 . . . 1 . . 1 . . . . Impact Weapon 1 | . . . . . 1 . . . . . . . Slashing Weapon 5 | . . . . 1 . . 1 . . . 1 2 Piercing Weapon . | . . . . . . . . . . . . . Special Melee Weapon 1 | . . . . . . 1 . . . . . . Unidentified Prototypes 6 | . 1 1 . . . 1 . . 2 . . 1 Corrupted Parts 4 | . . . . . . . . . 2 . . 2 System Corruption 13 | . . . . . . . . . 9 . . 4 Parts Lost 80 | . 4 6 2 6 16 3 1 . 1 . 10 31 Power 10 | . 1 1 . . 1 . . . 1 . 1 5 Propulsion 25 | . 2 3 1 2 5 2 . . . . 2 8 Utility 18 | . . . 1 2 2 . 1 . . . 4 8 Weapon 27 | . 1 2 . 2 8 1 . . . . 3 10 Highest Loss Streak 10 | . 4 1 2 3 8 2 1 . 1 . 10 6 To Critical Strikes 2 | . . . . . 1 . . . 1 . . . Average Backups 9 | . 7 12 10 9 5 4 4 11 14 14 13 7 Power . | . . . . . . . . . . 1 1 . Propulsion 1 | . 1 1 . . . . 1 4 3 3 3 1 Utility 2 | . 3 5 3 1 1 2 1 1 3 3 2 . Weapon 3 | . 2 4 6 7 2 . 1 3 4 5 4 2 Tool/Special . | . . . . . . . . . . . . . Unused Backups 16 | . 2 1 2 . . 3 . 1 2 1 1 3 Power . | . . . . . . . . . . . . . Propulsion 3 | . . . . . . . . . 2 . 1 . Utility 6 | . . 1 1 . . 3 . . . 1 . . Weapon 5 | . 2 . 1 . . . . 1 . . . 1 Tool/Special 2 | . . . . . . . . . . . . 2 Average Slot Usage (%) 76 | . 99 87 93 88 64 58 65 64 63 64 62 62 Engine 3 | . 13 4 . . 2 6 5 1 . . . . Core 4 | . . 6 7 8 3 . . 3 4 5 4 . Treads 12 | . 28 18 18 14 4 . 4 . 8 11 10 9 Wheel 1 | . . . . . . 2 5 10 1 . . . Device 6 | . 14 10 7 7 2 6 2 . . . . 3 Storage 7 | . 14 11 7 8 3 . . 4 5 5 5 4 Processor 7 | . . 1 7 14 16 18 11 11 11 11 10 5 Hackware 5 | . . . . . 5 7 11 16 17 17 15 6 Protection 2 | . . 2 11 1 . . 4 . . . . 2 Energy Gun 1 | . . . . . . . . . 2 . . 8 Energy Cannon 12 | . 14 22 29 28 10 . . . . . . . Ballistic Gun 1 | . 13 . . 2 1 . . . 2 5 1 1 Launcher 1 | . . 5 . 1 . . . . . . . . Slashing Weapon 1 | . . . . . 2 1 5 4 . . 2 7 Special Melee Weapon 1 | . . . . . . 5 5 5 5 5 4 . Peak Build Rating 145 | 9 14 36 51 51 49 102 118 118 143 145 145 114 Average Rating 63 | 6 10 23 47 48 39 95 115 115 136 143 135 78 On Entrance 65 | . 9 14 36 48 49 40 102 115 117 143 145 28 Avg Prop Armor Cover (%) 7 | . . 2 1 . 4 . 10 9 . . 18 8 Naked Turns . | . . . . . . . . . . . . . Heaviest Build 102 | 14 32 42 52 52 52 72 80 91 95 95 98 102 Greatest Support 160 | 40 40 40 62 62 42 28 30 56 160 160 160 137 Greatest Overweight (x) 31 | . . 2 2 2 14 22 2 3 31 . 2 15 Average Overweight (x) . | . . . . 1 1 2 2 1 . . . 1 Largest Inventory Capacity 15 | 8 15 15 15 15 15 5 5 15 15 15 15 15 Average Capacity 12 | 7 10 15 15 15 10 5 5 14 15 15 15 14 Most Carried 15 | 1 12 15 15 15 14 5 5 15 15 15 15 13 Average Carried 10 | . 8 12 14 13 9 4 5 11 14 15 14 8 Final Capacity 15 | 8 15 15 15 15 5 5 5 15 15 15 15 5 Final Carried 15 | 1 12 15 15 14 5 5 5 15 15 15 14 5 Class Distribution -------------------- 30% | Mutant 20% | Hacker-Mutant 16% | Skirmisher 13% | Tank 10% | Assassin 3% | Scavenger-Mutant 3% | Scavenger-Executioner Dominant Class ---------------- Mutant | -10/Materials Mutant | -10/Subcaves Tank | -8/Materials Skirmisher | -8/Garrison Mutant | -7/Factory Assassin | -6/Factory Mutant | -5/Factory Hacker-Mutant | -5/Extension Hacker-Mutant | -5/Cetus Hacker-Mutant | -5/Archives Hacker-Mutant | -5/Hub_04(d) Scavenger-Executioner | -4/Factory Resources | -11 -10 -10 -8 -8 -7 -6 -5 -5 -5 -5 -5 -4 ----------- Run | Yrd Mat Sub Mat Gar Fac Fac Fac Ext Cet Arc Hub Fac Matter Collected 4291 | 346 186 370 249 290 111 71 310 725 98 138 340 1057 Remotely . | . . . . . . . . . . . . . Salvage Created 6392 | 215 635 544 573 924 415 . 532 136 . 150 388 1880 Parts 328 | 17 39 43 22 40 23 . 20 8 . 9 14 93 Haulers Intercepted 5 | . 2 . 3 . . . . . . . . . Recyclers Shooed 8 | . . . . . . . 5 . . . . 3 Parts Field Recycled . | . . . . . . . . . . . . . Retrieved Matter . | . . . . . . . . . . . . . Parts Self-Destructed 13 | . . 13 . . . . . . . . . . Prevented . | . . . . . . . . . . . . . Parts Restored 1 | . . . . . . . . . . . . 1 Broken 1 | . . . . . . . . . . . . 1 Kills | -11 -10 -10 -8 -8 -7 -6 -5 -5 -5 -5 -5 -4 ------- Run | Yrd Mat Sub Mat Gar Fac Fac Fac Ext Cet Arc Hub Fac Combat Hostiles Destroyed 98 | . 11 19 7 22 13 . 1 . . . . 25 Melee 13 | . . . . . 1 . 1 . . . . 11 Guns 13 | . 8 . . 3 . . . . . . . 2 Cannons 46 | . 3 8 6 11 6 . . . . . . 12 AOE 18 | . . 10 . 5 3 . . . . . . . Classes Destroyed 17 | 2 7 2 2 3 1 . . . . . . . Worker 9 | . 3 . . . 1 . 3 . . . 1 1 Builder 1 | . . . 1 . . . . . . . . . Tunneler 9 | 7 . . . . . . . . . . . 2 Hauler 5 | . 2 . 3 . . . . . . . . . Recycler 9 | 1 1 . . . . . 3 1 . . . 3 Mechanic 2 | . . . . 1 . . 1 . . . . . Operator 7 | . 1 . . . . . . 1 . 4 1 . Watcher 2 | . 1 . 1 . . . . . . . . . Swarmer 21 | . 4 3 . 6 8 . . . . . . . Grunt 35 | . 6 1 4 11 1 . . . . . 2 10 Sentry 12 | . . 1 1 1 2 . . . . . 3 4 Demolisher 1 | . . . . 1 . . . . . . . . Specialist 3 | . . . . 2 . . 1 . . . . . Hunter 6 | . . . 2 1 1 . . . . . . 2 Programmer 10 | . . . . . 1 . . . . . . 9 Subdweller 15 | . 1 14 . . . . . . . . . . Zionite 1 | . . 1 . . . . . . . . . . Best Kill Streak 8 | 4 8 3 2 4 4 . 5 1 . 2 1 5 Combat Bots Only 7 | . 7 3 2 3 4 . 1 . . . . 5 Max Kills in Single Turn 3 | 1 2 3 1 2 2 . 1 1 . 2 3 2 Gunslinging . | . . . . . . . . . . . . . Exploded 3 | . . 3 . 2 2 . . . . . . . Melee 2 | . . . . . 1 . 1 . . . . 2 Uniques/NPCs Destroyed . | . . . . . . . . . . . . . Combat | -11 -10 -10 -8 -8 -7 -6 -5 -5 -5 -5 -5 -4 -------- Run | Yrd Mat Sub Mat Gar Fac Fac Fac Ext Cet Arc Hub Fac Hostile Shots Fired 1154 | . 88 58 56 65 230 23 17 13 6 10 165 423 Missed 334 | . 26 17 10 11 79 3 7 4 1 1 52 123 Hits 820 | . 62 41 46 54 151 20 10 9 5 9 113 300 Projectile 820 | . 62 41 46 54 151 20 10 9 5 9 113 300 AOE 2 | . . . . 2 . . . . . . . . Critical Strikes 44 | . . 2 1 1 1 . . . 1 . 13 25 Part Disruptions 1 | . . . . . . . . . . . 1 . Damage Taken 15813 | . 674 951 717 919 1639 409 315 271 130 265 3196 6327 Core 3125 | . 77 147 202 239 622 73 32 61 . 23 494 1155 Absorbed by Shields . | . . . . . . . . . . . . . Regen/Repaired (Parts) 421 | . . . . . . 180 40 56 . . 145 . Core Remaining (%) 45 | 100 . 10 . 19 11 91 . . . . 39 . Volleys Fired 315 | 19 44 55 25 35 18 . . 6 5 19 11 78 Largest 5 | 2 2 3 4 4 4 . . 1 1 1 2 5 Hottest 317 | 40 160 204 272 294 274 . . 39 81 35 81 317 Shots Fired 675 | 38 87 115 90 139 32 . . 6 8 19 12 129 Gun 197 | 38 66 . . 11 2 . . . 8 19 8 45 Cannon 438 | . 20 91 90 122 30 . . . . . 1 84 Launcher 32 | . . 24 . 6 . . . 1 . . 1 . Special 8 | . 1 . . . . . . 5 . . 2 . Kinetic 243 | 38 66 . . 11 2 . . . 4 19 6 97 Thermal 391 | . 21 91 90 122 30 . . . 4 . 3 30 Explosive 32 | . . 24 . 6 . . . 1 . . 1 . Electromagnetic 2 | . . . . . . . . . . . . 2 Robot Hit Streak 18 | 8 12 14 7 18 4 . . 6 9 2 4 8 Robot Miss Streak 6 | 3 4 2 6 5 6 . . . 2 2 4 5 Penetration Max 1 | . . . . . . . . . . 1 1 1 Secondary Targets 3 | . 3 . . . . . . . . . . . Max Gunslinging Chain 1 | . 1 . . . . . . . . . . . Shots Hit Robots 445 | 26 54 54 43 63 31 . 15 7 5 10 4 133 Core Hits 221 | 11 28 34 19 37 11 . 7 1 . 6 15 52 Critical Kills 15 | . . 1 1 3 . . . . . 2 . 8 Critical Parts Destroyed 14 | . . . . . 4 . . . . 1 . 9 Critical Strikes 36 | . . 1 1 3 4 . . . 1 3 . 23 Burn 1 | . . . . . . . . . 1 . . . Meltdown 5 | . . 1 1 3 . . . . . . . . Destroy 20 | . . . . . . . . . . 3 . 17 Smash 4 | . . . . . 4 . . . . . . . Sever 6 | . . . . . . . . . . . . 6 Melee Attacks 143 | . . . . 1 33 3 20 5 . . 7 74 Impact 34 | . . . . . 32 2 . . . . . . Slashing 109 | . . . . 1 1 1 20 5 . . 7 74 Piercing . | . . . . . . . . . . . . . Sneak Attacks 17 | . . . . . 1 . 9 1 . . 1 5 Combat Hostiles . | . . . . . . . . . . . . . Follow-up Attacks 11 | . . . . . 1 . . . . . . 10 Damage Inflicted 15143 | 276 662 2021 948 1878 1433 . 826 155 163 287 1260 5234 Guns 2132 | 276 420 . . 158 . . . . 163 287 62 766 Cannons 4974 | . 240 734 948 1300 284 . . . . . . 1468 Explosions 3157 | . . 1287 . 415 326 . . 51 . . 1078 . Melee 4856 | . . . . . 823 . 826 104 . . 108 2995 Ramming 24 | . 2 . . 5 . . . . . . 12 5 Kinetic 3057 | 276 420 . . 158 . . . . 92 287 62 1762 Thermal 4049 | . 240 734 948 1300 284 . . . 71 . . 472 Explosive 2433 | . . 1287 . 415 326 . . 51 . . 354 . Electromagnetic 724 | . . . . . . . . . . . 724 . Impact 786 | . . . . . 786 . . . . . . . Slashing 4070 | . . . . . 37 . 826 104 . . 108 2995 Piercing . | . . . . . . . . . . . . . Highest Corruption 35 | . . . . . . 2 3 3 12 12 35 30 Average Corruption 9 | . . . . . . 1 2 3 10 12 13 17 Corruption Purged . | . . . . . . . . . . . . . Corruption Blocked . | . . . . . . . . . . . . . Effects 140 | . . . . . . 9 3 17 16 11 36 48 Message Errors 31 | . . . . . . 3 2 3 1 5 9 8 Matter Fused 26 | . . . . . . 2 . 4 4 4 6 6 Heat Flow Errors 13 | . . . . . . . . 3 1 1 3 5 Energy Discharges 25 | . . . . . . 2 . 3 4 . 7 9 Parts Rejected 2 | . . . . . . . . . 1 . . 1 Data Loss (minor) 17 | . . . . . . 1 1 2 1 1 4 7 Data Loss (major) 6 | . . . . . . . . 1 1 . 1 3 Misfires 4 | . . . . . . . . . 2 . 1 1 Alerts 4 | . . . . . . 1 . 1 1 . 1 . Misdirections 5 | . . . . . . . . . . . 3 2 Weapon Failures 7 | . . . . . . . . . . . 1 6 Overload Shots . | . . . . . . . . . . . . . Overflow Damage 976 | . . 7 26 49 315 . 115 44 . . 6 414 Projectiles 55 | . . . 26 2 . . . . . . . 27 Explosions 69 | . . 7 . 47 9 . . . . . 6 . Melee 852 | . . . . . 306 . 115 44 . . . 387 Knockbacks 14 | . . . . . 3 . . . . . . 11 Impact 3 | . . . . . 3 . . . . . . . Kinetic 11 | . . . . . . . . . . . . 11 Secondary . | . . . . . . . . . . . . . Self-Inflicted Damage 233 | . . 70 . 58 . . . . . . 105 . Shots 7 | . . 4 . 2 . . . . . . 1 . Rammed 4 | . . . . 2 . . . . . . 1 1 Targets Rammed 6 | . 2 . . 2 . . . . . . 1 1 Kicked . | . . . . . . . . . . . . . Crushed 2 | . 2 . . . . . . . . . . . Highest Temperature 640 | . 150 186 640 627 518 . . 185 248 210 128 498 Average Temperature 172 | . 37 47 208 230 231 . . 77 84 115 51 179 Received Heat Transfer 2426 | . 255 159 288 261 288 . 18 18 . 27 306 806 Effects 77 | . . . 18 23 13 . . . . 1 . 22 Shutdowns 24 | . . . 3 10 2 . . . . . . 9 Energy Bleed 12 | . . . 3 4 1 . . . . 1 . 3 Interference 19 | . . . 5 5 3 . . . . . . 6 Matter Decay 4 | . . . 2 1 . . . . . . . 1 Short Circuit 4 | . . . 2 . 1 . . . . . . 1 Damage (minor) 5 | . . . . 2 1 . . . . . . 2 Damage (major) 7 | . . . 2 . 5 . . . . . . . Damage (core) 2 | . . . 1 1 . . . . . . . . Siege Activations . | . . . . . . . . . . . . . Martial Activations . | . . . . . . . . . . . . . Shielding Activations . | . . . . . . . . . . . . . Robots Disrupted . | . . . . . . . . . . . . . Combat Hostiles . | . . . . . . . . . . . . . Robots Corrupted 6 | . . . . . 3 . . . . . 3 . Combat Hostiles 3 | . . . . . 3 . . . . . . . Parts Fried 10 | . . . . . 6 . . . . . 4 . Impact Corruptions 7 | . . . . . 7 . . . . . . . Robots Melted 5 | . . 1 1 3 . . . . . . . . Combat Hostiles 5 | . . 1 1 3 . . . . . . . . Parts Melted 13 | . . 1 5 5 . . . . . . . 2 Heat Transferred 6894 | . 481 1332 1702 1956 433 . . . 185 . . 805 Parts Sabotaged . | . . . . . . . . . . . . . Parts Stolen . | . . . . . . . . . . . . . Parts Stripped . | . . . . . . . . . . . . . Power Chain Reactions . | . . . . . . . . . . . . . Alert | -11 -10 -10 -8 -8 -7 -6 -5 -5 -5 -5 -5 -4 ------- Run | Yrd Mat Sub Mat Gar Fac Fac Fac Ext Cet Arc Hub Fac Maximum Alert Level 3 | . . . . 3 2 1 . 1 . . 2 1 Low Security (%) 70 | 100 100 . 100 16 . 93 100 96 100 100 22 77 Level 1 16 | . . . . 41 15 6 . 3 . . 66 22 Level 2 11 | . . . . 28 84 . . . . . 11 . Level 3 1 | . . . . 13 . . . . . . . . Level 4 . | . . . . . . . . . . . . . Level 5 . | . . . . . . . . . . . . . High Security . | . . . . . . . . . . . . . Max Security . | . . . . . . . . . . . . . Peak Influence 853 | 10 115 . 75 853 592 226 20 218 96 143 650 285 Initial 447 | . . . . . 447 226 . . 38 . 29 265 Average 156 | 1 31 . 15 405 461 56 1 71 27 102 248 156 Influence Increases 4957 | 40 343 120 265 913 525 35 76 588 143 195 1021 693 Destroy 0b10 Robot/C 2420 | . 200 100 140 440 260 20 20 260 80 80 320 500 Destroy 0b10 Robot/NC 285 | 40 40 . 25 15 5 . 35 35 5 20 35 30 Destroy Leader 438 | . 56 20 48 10 60 10 . 36 . . 78 120 Allied During Kill 462 | . . . . . . 2 . 189 39 32 200 . Successful Hack 92 | . 17 . 20 14 . . . 8 . . 33 . Disable Machine 375 | . 30 . 30 30 75 . . 30 15 45 120 . Anti-Garrison Action 300 | . . . . 300 . . . . . . . . Destroy Structure 375 | . . . 2 59 35 3 6 30 4 18 190 28 Lose Combat Pursuer 210 | . . . . 45 90 . 15 . . . 45 15 Influence Decreases 4859 | 40 343 120 265 60 916 497 76 519 212 110 564 1137 Entered New Map 1006 | . . . . . 406 236 . . 31 . 56 277 Time Decay 2879 | 40 303 120 245 . 350 231 69 362 131 110 368 550 Lost Part 730 | . 40 . 20 60 160 30 . . 10 . 100 310 Lost Ally 244 | . . . . . . . 7 157 40 . 40 . Squads Dispatched 24 | . 2 . . . 4 5 4 . . . 6 3 Investigation 4 | . 1 . . . . 1 1 . . . 1 . Extermination 8 | . . . . . 1 2 1 . . . 2 2 Reinforcement 9 | . 1 . . . 1 2 2 . . . 2 1 Assault 1 | . . . . . . . . . . . 1 . Garrison 2 | . . . . . 2 . . . . . . . Intercept . | . . . . . . . . . . . . . Searches Triggered . | . . . . . . . . . . . . . Construction Impeded . | . . . . . . . . . . . . . Haulers Reinforced . | . . . . . . . . . . . . . Active Scanning Responses . | . . . . . . . . . . . . . Cargo Convoy Interrupts . | . . . . . . . . . . . . . Stealth | -11 -10 -10 -8 -8 -7 -6 -5 -5 -5 -5 -5 -4 --------- Run | Yrd Mat Sub Mat Gar Fac Fac Fac Ext Cet Arc Hub Fac Distress Signals 15 | . . . 2 6 . . . . . . 3 4 Communications Jammed . | . . . . . . . . . . . . . Distress Signals . | . . . . . . . . . . . . . Times Spotted 249 | . 24 20 10 32 21 6 7 21 5 18 39 46 Peak Tracking Total 13 | . 5 3 3 5 5 2 2 3 5 2 13 10 Tactical Retreats 12 | . . . . 2 5 . 1 . . . 3 1 Traps | -11 -10 -10 -8 -8 -7 -6 -5 -5 -5 -5 -5 -4 ------- Run | Yrd Mat Sub Mat Gar Fac Fac Fac Ext Cet Arc Hub Fac Traps Triggered 9 | . 1 2 . 2 . . 2 2 . . . . Indirectly . | . . . . . . . . . . . . . Trap Hack Attempts . | . . . . . . . . . . . . . Triggered . | . . . . . . . . . . . . . Disarmed . | . . . . . . . . . . . . . Reprogrammed . | . . . . . . . . . . . . . Reused . | . . . . . . . . . . . . . Traps Extracted . | . . . . . . . . . . . . . Installed . | . . . . . . . . . . . . . Triggered . | . . . . . . . . . . . . . Machines | -11 -10 -10 -8 -8 -7 -6 -5 -5 -5 -5 -5 -4 ---------- Run | Yrd Mat Sub Mat Gar Fac Fac Fac Ext Cet Arc Hub Fac Machines Disabled 33 | . 2 . 2 8 5 . . 3 2 3 8 . Max in Single Turn 6 | . 1 . 1 2 2 . . 1 1 2 6 . Garrison Access 4 | . . . . . 1 1 1 . . . 1 . Garrison Relay 4 | . . . . 4 . . . . . . . . Network Hub 1 | . . . . . . . . . . . 1 . Machines Repaired . | . . . . . . . . . . . . . Machines Dismantled . | . . . . . . . . . . . . . Machines Sabotaged . | . . . . . . . . . . . . . Overloaded Fab Kills . | . . . . . . . . . . . . . Hacking | -11 -10 -10 -8 -8 -7 -6 -5 -5 -5 -5 -5 -4 --------- Run | Yrd Mat Sub Mat Gar Fac Fac Fac Ext Cet Arc Hub Fac Machines Accessed 30 | . 6 1 3 2 3 3 3 3 1 . 5 . Terminals 21 | . 5 . 2 2 2 1 1 3 1 . 4 . Fabricators 1 | . . . . . . 1 . . . . . . Repair Stations 1 | . . . . . . . 1 . . . . . Recycling Units 1 | . 1 . . . . . . . . . . . Scanalyzers . | . . . . . . . . . . . . . Garrison Access 5 | . . . 1 . 1 1 1 . . . 1 . Total Hacks 63 | . 14 4 10 3 3 5 5 5 3 . 11 . Successful 31 | . 5 4 4 2 1 1 3 4 1 . 6 . Failed 32 | . 9 . 6 1 2 4 2 1 2 . 5 . Catastrophic 9 | . 1 . 2 . 2 1 2 . . . 1 . Database Lockouts . | . . . . . . . . . . . . . Manual 12 | . . . 4 . 2 . . . 1 . 5 . Terminals 46 | . 11 . 8 3 2 2 2 5 3 . 10 . Fabricators 2 | . . . . . . 2 . . . . . . Repair Stations 2 | . . . . . . . 2 . . . . . Recycling Units 3 | . 3 . . . . . . . . . . . Scanalyzers . | . . . . . . . . . . . . . Garrison Access 6 | . . . 2 . 1 1 1 . . . 1 . Terminal Hacks 23 | . 4 4 3 2 . . . 4 1 . 5 . Record 4 | . . 4 . . . . . . . . . . Part Schematic 1 | . . . . . . . . . . . 1 . Robot Analysis 1 | . . . . . . . . . . . 1 . Open Door 3 | . . . . . . . . 2 1 . . . Level Access Points 1 | . . . . . . . . . . . 1 . Branch Access Points 2 | . . . 1 . . . . . . . 1 . Emergency Access Points 1 | . . . . 1 . . . . . . . . Garrison Index 1 | . . . . . . . . . . . 1 . Alert Level 1 | . . . . . . . . 1 . . . . Security Status 1 | . . . . . . . . 1 . . . . Hauler Manifests 2 | . 1 . 1 . . . . . . . . . Registered Components 2 | . 1 . 1 . . . . . . . . . Zone Layout 2 | . 2 . . . . . . . . . . . Security Stations 1 | . . . . 1 . . . . . . . . Fabricator Hacks . | . . . . . . . . . . . . . Repair Station Hacks 2 | . . . . . . . 2 . . . . . Scan Component 1 | . . . . . . . 1 . . . . . Repair 1 | . . . . . . . 1 . . . . . Recycling Unit Hacks 1 | . 1 . . . . . . . . . . . Retrieve Components 1 | . 1 . . . . . . . . . . . Scanalyzer . | . . . . . . . . . . . . . Garrison Access Hacks 5 | . . . 1 . 1 1 1 . . . 1 . Unlock Access 1 | . . . 1 . . . . . . . . . Seal Access 4 | . . . . . 1 1 1 . . . 1 . Unauthorized Hacks . | . . . . . . . . . . . . . Terminals . | . . . . . . . . . . . . . Fabricators . | . . . . . . . . . . . . . Repair Stations . | . . . . . . . . . . . . . Recycling Units . | . . . . . . . . . . . . . Scanalyzers . | . . . . . . . . . . . . . Garrison Access . | . . . . . . . . . . . . . Data Cores Recovered 3 | . 1 . . . . . . 2 . . . . Used . | . . . . . . . . . . . . . Hacking Detections 19 | . 5 . 2 1 2 2 2 1 2 . 2 . Full Trace Events 4 | . 1 . 1 . . 1 1 . . . . . Feedback Events 1 | . . . . . . 1 . . . . . . Corruption 1 | . . . . . . 1 . . . . . . Feedback Blocked . | . . . . . . . . . . . . . Robot Schematics Acquired . | . . . . . . . . . . . . . Robots Built . | . . . . . . . . . . . . . Authchips . | . . . . . . . . . . . . . Time . | . . . . . . . . . . . . . Total Robot Build Rating . | . . . . . . . . . . . . . Part Schematics Acquired 1 | . . . . . . . . . . . 1 . Parts Built . | . . . . . . . . . . . . . Authchips . | . . . . . . . . . . . . . Time . | . . . . . . . . . . . . . Total Part Build Rating . | . . . . . . . . . . . . . Part Studies Acquired . | . . . . . . . . . . . . . Parts Repaired 1 | . . . . . . . 1 . . . . . Time 38 | . . . . . . . 38 . . . . . Parts Recycled . | . . . . . . . . . . . . . Recycled Matter . | . . . . . . . . . . . . . Retrieved Matter . | . . . . . . . . . . . . . Retrieved Components 4 | . 4 . . . . . . . . . . . Parts Scanalyzed . | . . . . . . . . . . . . . Part Schematics Acquired . | . . . . . . . . . . . . . Parts Damaged . | . . . . . . . . . . . . . Bothacking | -11 -10 -10 -8 -8 -7 -6 -5 -5 -5 -5 -5 -4 ------------ Run | Yrd Mat Sub Mat Gar Fac Fac Fac Ext Cet Arc Hub Fac Used RIF Installer 1 | . . . . 1 . . . . . . . . Robots Hacked 2 | . . . . . . . . . . . 2 . Non-combat . | . . . . . . . . . . . . . Combat 2 | . . . . . . . . . . . 2 . Robot Hacks Applied 2 | . . . . . . . . . . . 2 . formatsys_high 2 | . . . . . . . . . . . 2 . Relay Couplers Released 15 | . . . . 15 . . . . . . . . Machine Destruction 15 | . . . . 15 . . . . . . . . Attached 2 | . . . . . 2 . . . . . . . Fabnet Peak Effective % . | . . . . . . . . . . . . . Robots Rewired 4 | . . . . . . . . 4 . . . . Allies Hacked . | . . . . . . . . . . . . . Hacks Repelled . | . . . . . . . . . . . . . Allies | -11 -10 -10 -8 -8 -7 -6 -5 -5 -5 -5 -5 -4 -------- Run | Yrd Mat Sub Mat Gar Fac Fac Fac Ext Cet Arc Hub Fac Total Allies 10 | . . . . . . . . 8 . . 2 . Largest Group 8 | . . . . . . . . 8 3 1 3 . Highest-Rated Group 226 | . . . . . . . . 226 80 39 89 . Highest-Rated Ally 39 | . . . . . . . . 39 39 39 39 . Total Orders 1 | . . . . . . . 1 . . . . . DROP 1 | . . . . . . . 1 . . . . . Ally Attacks 206 | . . . . . . 2 2 80 28 31 63 . Total Damage 5558 | . . . . . . 41 74 2428 925 695 1395 . Kills 49 | . . . . . . 1 . 18 5 4 21 . Allies Corrupted 3 | . . . . . . . . . . . 3 . Allies Melted . | . . . . . . . . . . . . . Borg Created 12 | . . . . . . 2 4 5 . . 1 . Largest Collective 4 | . . . . . . 2 1 3 . . 4 . Intel | -11 -10 -10 -8 -8 -7 -6 -5 -5 -5 -5 -5 -4 ------- Run | Yrd Mat Sub Mat Gar Fac Fac Fac Ext Cet Arc Hub Fac Active Infowar (turns) 10381 | 74 1145 3116 63 1121 385 958 749 1244 418 233 875 . Optics 5014 | . . . . 974 244 277 749 1244 418 233 875 . Sensors 5886 | . . 3116 63 1073 309 958 367 . . . . . Terrain 1219 | 74 1145 . . . . . . . . . . . Robot Analysis Total 1 | . . . . . . . . . . . 1 . Derelict Logs Recovered 2 | . . 2 . . . . . . . . . . Drone Launches . | . . . . . . . . . . . . . Drone Recoveries . | . . . . . . . . . . . . . Exploration | -11 -10 -10 -8 -8 -7 -6 -5 -5 -5 -5 -5 -4 ------------- Run | Yrd Mat Sub Mat Gar Fac Fac Fac Ext Cet Arc Hub Fac Turns Passed 13939 | 232 1145 3499 778 1391 793 958 749 1244 418 233 916 1583 Spaces Moved 6459 | 101 617 1537 333 521 373 426 371 836 229 116 510 489 Core 152 | 7 . . . . 81 10 . . 1 . . 53 Treads 4271 | 94 617 1537 333 521 69 . 2 . 196 116 488 298 Legs . | . . . . . . . . . . . . . Wheels 1588 | . . . . . . 266 369 836 32 . . 85 Hover 444 | . . . . . 219 150 . . . . 22 53 Flight 4 | . . . . . 4 . . . . . . . Fastest Speed 50 | 50 160 160 155 152 50 56 130 115 115 160 116 60 Average Speed 176 | 152 160 208 196 235 150 201 131 115 161 160 159 183 Slowest Speed 1600 | 160 160 360 360 305 835 1150 320 145 1600 160 220 800 Overloaded Moves . | . . . . . . . . . . . . . Propulsion Burnouts . | . . . . . . . . . . . . . Robots Hopped . | . . . . . . . . . . . . . Potential Cave-ins . | . . . . . . . . . . . . . Cave-ins Triggered . | . . . . . . . . . . . . . Exploration Rate (%) 45 | 5 79 84 22 62 10 11 13 71 87 94 46 12 Regions Visited 12 Branch Regions 5 Pre-discovered Areas 2 | . . 2 . . . . . . . . . . Known Exits Taken 9 | . . 1 1 . 1 1 1 1 1 1 1 . Unknown Exits Taken 2 | 1 1 . . . . . . . . . . . Scrap Searched 10 | . . 10 . . . . . . . . . . Spaces Dug 8 | . . . . . . 3 3 . . . 2 . Terrain Destroyed 401 | . . 99 . 43 39 3 3 22 . 7 173 12 Melee 8 | . . . . . . 3 3 . . . 2 . Projectile 29 | . . . . 2 4 . . . . 7 4 12 AOE 364 | . . 99 . 41 35 . . 22 . . 167 . Terrain Rammed . | . . . . . . . . . . . . . Walls Destroyed . | . . . . . . . . . . . . . Machines Disabled . | . . . . . . . . . . . . . Actions | -11 -10 -10 -8 -8 -7 -6 -5 -5 -5 -5 -5 -4 --------- Run | Yrd Mat Sub Mat Gar Fac Fac Fac Ext Cet Arc Hub Fac Total 8230 | 142 692 1722 398 589 537 518 593 1090 274 146 585 944 Wait 1029 | 15 . 110 7 18 96 67 192 198 23 9 33 261 Move 6446 | 100 616 1536 332 519 372 425 370 835 228 115 509 489 Hop . | . . . . . . . . . . . . . Pick Up 61 | 1 17 6 7 2 1 8 . 11 2 1 3 2 Fast Attach 74 | 7 1 1 6 2 12 3 4 2 5 . 2 29 Attach 29 | . 3 7 2 3 4 1 . . 1 . 3 5 Detach 8 | . . . 1 . . 1 . 2 1 . 1 2 Swap 53 | . 5 6 7 5 1 2 2 6 3 1 9 6 Drop 45 | . 4 1 11 . 1 6 1 3 6 1 3 8 Fire 315 | 19 44 55 25 35 18 . . 6 5 19 11 78 Melee 131 | . . . . 1 32 3 20 5 . . 7 63 Ram 1 | . . . . . . . . . . . 1 . Kick . | . . . . . . . . . . . . . Crush 6 | . 2 . . 2 . . . . . . 1 1 Escape Stasis 18 | . . . . 2 . . . 16 . . . . Rewire 2 | . . . . . . . . 1 . . 1 . Trap . | . . . . . . . . . . . . . Miscellaneous 12 | . . . . . . 2 4 5 . . 1 . Route ------- -11/Scrapyard -10/Materials (discovered 5 exits: [*Mat x2] / [*Min x2] / *Sub) -10/Subcaves (discovered 2 exits: *Mat x2) -8/Materials (discovered 3 exits: Fac x2 / Gar) -8/Garrison (discovered 2 exits: *Fac x2) -7/Factory -6/Factory -5/Factory -5/Extension (discovered 3 exits: *Fac x2 / *Cet) -5/Cetus (discovered 2 exits: *Fac / *Arc) -5/Archives (discovered 3 exits: *Fac / *Hub x2) -5/Hub_04(d) (discovered 4 exits: *Fac x4) -4/Factory (discovered 1 exit: [*Arm]) History --------- Turn | Location | Event 11 | -11/Scrapyard | Discovered new exit (range 16) 233 | -11/Scrapyard | Entered Materials 274 | -10/Materials | Discovered new exit (range 5) 310 | -10/Materials | Build established: Mutant 570 | -10/Materials | Lost 4 parts (1p2n1w) 572 | -10/Materials | Destroyed 7 combat bots 610 | -10/Materials | Discovered new exit (range 13) 740 | -10/Materials | Discovered new exit (range 15) 862 | -10/Materials | Discovered new exit (range 12) 933 | -10/Materials | Derelicts attacked the area 1066 | -10/Materials | Discovered new exit (range 9) 1378 | -10/Materials | Entered Subcaves 1379 | -10/Subcaves | Approached by a straggling Scientist 1412 | -10/Subcaves | Learned location of 1 exit from Materials 1454 | -10/Subcaves | Core integrity fell below 50% 1507 | -10/Subcaves | Learned location of Zion (-7) 1507 | -10/Subcaves | Met a Zionite searching for "candidates" 1806 | -10/Subcaves | Visited Clippyterm 1811 | -10/Subcaves | Learned location of Extension (-5) 2000 | -10/Subcaves | Disturbed a concealed Subdweller 2138 | -10/Subcaves | Shifting Twisted Machinery released Flamer 2365 | -10/Subcaves | Core integrity fell below 20% 2463 | -10/Subcaves | A swath of the cavern ceiling suddenly collapsed 2538 | -10/Subcaves | A Subdweller sparked back to life 2538 | -10/Subcaves | A Subdweller sparked back to life 2564 | -10/Subcaves | Found Prototype Power Core 2564 | -10/Subcaves | Identified Meta Core 2565 | -10/Subcaves | Attached Meta Core, gained temporary slots: Propulsion, Utility, Weapon 2593 | -10/Subcaves | Shifting Twisted Machinery released Sub. Beam Cannon 2858 | -10/Subcaves | Learned 4 Materials zone layouts 3233 | -10/Subcaves | Discovered new exit (range 14) 3402 | -10/Subcaves | Build established: Skirmisher 3496 | -10/Subcaves | A swath of the cavern ceiling suddenly collapsed 3531 | -10/Subcaves | Shifting Twisted Machinery released Sub. Beam Cannon 3544 | -10/Subcaves | Shifting Twisted Machinery released Battle Rifle 3601 | -10/Subcaves | Discovered new exit (range 13) 4312 | -10/Subcaves | Build established: Tank 4415 | -10/Subcaves | Visited 4L-MR0's lab 4446 | -10/Subcaves | Found Prototype Special Melee Weapon 4873 | -10/Subcaves | Identified exit to Materials 4877 | -10/Subcaves | Entered Materials 4877 | -8/Materials | Evolved 4 slots: Propulsion x1, Utility x2, Weapon x1 4878 | -8/Materials | Identified exit to Factory 5653 | -8/Materials | Identified exit to Garrison 5655 | -8/Materials | Entered Garrison 5671 | -8/Garrison | Triggered checkpoint 5768 | -8/Garrison | Garrison Relay disabled 5837 | -8/Garrison | Triggered checkpoint 5865 | -8/Garrison | Triggered checkpoint 5891 | -8/Garrison | Garrison Relay disabled 5954 | -8/Garrison | Lost 3 parts (1n2u) 6017 | -8/Garrison | Triggered checkpoint 6132 | -8/Garrison | Core integrity fell below 50% 6222 | -8/Garrison | Build established: Skirmisher 6248 | -8/Garrison | Learned Factory security intel 6358 | -8/Garrison | Discovered exit to Factory (range 12) 6376 | -8/Garrison | Garrison Relay disabled 6761 | -8/Garrison | Core integrity fell below 20% 6869 | -8/Garrison | Triggered checkpoint 6934 | -8/Garrison | Installed Relay Interface Framework 6955 | -8/Garrison | Garrison Relay disabled 7016 | -8/Garrison | Discovered exit to Factory (range 12) 7046 | -8/Garrison | Entered Factory 7046 | -7/Factory | Evolved 2 slots: Utility x1, Weapon x1 7269 | -7/Factory | Lost 3 parts (1u2w) 7352 | -7/Factory | Lost 3 parts (2n1w) 7428 | -7/Factory | Garrison activated, responded to threat 7480 | -7/Factory | Core integrity fell below 50% 7510 | -7/Factory | Lost 8 parts (1p2n1u4w) 7554 | -7/Factory | Core integrity fell below 20% 7607 | -7/Factory | Build established: Mutant 7836 | -7/Factory | Discovered new exit (range 4) 7838 | -7/Factory | Identified exit to Factory 7839 | -7/Factory | Entered another Factory area 7839 | -6/Factory | Evolved 2 slots: Weapon x2 7870 | -6/Factory | Identified 1B-0RG's Assimilator 8062 | -6/Factory | Build established: Assassin 8217 | -6/Factory | Assimilating Slayer 5a into Collective. 8546 | -6/Factory | Assimilating Hacker 5a into Collective. 8770 | -6/Factory | Discovered new exit (range 16) 8788 | -6/Factory | Identified exit to Factory 8797 | -6/Factory | Entered another Factory area 8797 | -5/Factory | Evolved 2 slots: Propulsion x1, Utility x1 8980 | -5/Factory | Repaired Imp. Sensor Array 9067 | -5/Factory | Assimilating Conveyor 6a into Collective. 9240 | -5/Factory | Assimilating Chaingunner 6a into Collective. 9423 | -5/Factory | Assimilating Sage 6a into Collective. 9475 | -5/Factory | Discovered new exit (range 19) 9477 | -5/Factory | Assimilating Sentinel 6a into Collective. 9498 | -5/Factory | Build established: Mutant 9542 | -5/Factory | Identified exit to Extension 9546 | -5/Factory | Entered Extension 9546 | -5/Extension | Accompanied by 1 ally 9663 | -5/Extension | Assimilating Sentinel 6b into Collective. 9695 | -5/Extension | Rescued a captive Derelict 9696 | -5/Extension | Rescued a captive Derelict 9747 | -5/Extension | Assimilating Sentinel 6c into Collective. 9883 | -5/Extension | Build established: Hacker-Mutant 9886 | -5/Extension | Spotted B-75 Beast 9890 | -5/Extension | Assimilating Sentinel 6d into Collective. 9895 | -5/Extension | Rescued a captive Derelict 9896 | -5/Extension | Rescued a captive Derelict 9957 | -5/Extension | Spotted B-75 Beast 9960 | -5/Extension | Assimilating Beast 6a into Collective. 9997 | -5/Extension | Allies destroyed B-75 Beast 10019 | -5/Extension | Discovered new exit (range 14) 10024 | -5/Extension | Lost 7 allies 10110 | -5/Extension | Discovered new exit (range 22) 10110 | -5/Extension | Discovered new exit (range 22) 10177 | -5/Extension | Identified exit to Cetus 10179 | -5/Extension | Identified exit to Factory 10190 | -5/Extension | Disrupted transfer network 10198 | -5/Extension | Assimilating Sage 6b into Collective. 10790 | -5/Extension | Entered Cetus 10790 | -5/Cetus | Accompanied by 6 allies 10803 | -5/Cetus | Spotted Cetus Guard 10803 | -5/Cetus | Spotted Cetus Guard 10803 | -5/Cetus | Spotted Cetus Guard 10803 | -5/Cetus | Spotted Cetus Guard 10820 | -5/Cetus | Allies destroyed Cetus Guard 10821 | -5/Cetus | Allies destroyed Cetus Guard 10833 | -5/Cetus | Allies destroyed Cetus Guard 10837 | -5/Cetus | Allies destroyed Cetus Guard 10885 | -5/Cetus | System corruption reached 10% 10930 | -5/Cetus | Discovered exit to Factory (range 21) 11155 | -5/Cetus | Discovered new exit (range 22) 11187 | -5/Cetus | Identified exit to Archives 11208 | -5/Cetus | Entered Archives 11208 | -5/Archives | Accompanied by 4 allies 11236 | -5/Archives | Unable to access archive contents 11272 | -5/Archives | Discovered new exit (range 24) 11285 | -5/Archives | Discovered exit to Factory (range 14) 11318 | -5/Archives | Discovered new exit (range 18) 11376 | -5/Archives | Identified exit to Hub_04(d) 11441 | -5/Archives | Entered Hub_04(d) 11441 | -5/Hub_04(d) | Accompanied by 4 allies 12068 | -5/Hub_04(d) | Assimilating Sentinel 6e into Collective. 12256 | -5/Hub_04(d) | Network Hub disabled 12265 | -5/Hub_04(d) | Spotted Lightning 12266 | -5/Hub_04(d) | Spotted Lightning 12266 | -5/Hub_04(d) | Spotted Lightning 12304 | -5/Hub_04(d) | Lost 5 allies 12320 | -5/Hub_04(d) | Core integrity fell below 50% 12324 | -5/Hub_04(d) | System corruption reached 30% 12341 | -5/Hub_04(d) | First assault squad dispatched 12357 | -5/Hub_04(d) | Entered Factory 12357 | -4/Factory | Evolved 2 slots: Power x1, Utility x1 12388 | -4/Factory | Lost 10 parts (1p2n4u3w) 12827 | -4/Factory | Build established: Scavenger-Executioner 13029 | -4/Factory | System corruption reached 10% 13115 | -4/Factory | Discovered new exit (range 14) 13231 | -4/Factory | Lost 6 parts (1p3u2w) 13330 | -4/Factory | Lost 5 parts (3n1u1w) 13546 | -4/Factory | Build established: Scavenger-Mutant 13649 | -4/Factory | Core integrity fell below 50% 13715 | -4/Factory | Lost 6 parts (1p3n2w) 13819 | -4/Factory | System corruption reached 30% 13830 | -4/Factory | Core integrity fell below 20% 13940 | -4/Factory | Destroyed by H-77 Assassin with Coil Gun Last Messages --------------- 13890_ System corrupted: Heat flow error (+130). 13891_ Destroyed Imp. Remote Datajack. 13895_ Vibroblade follow-up attack on P-70 Sage. 13897_ K-01 Serf collects debris. 13898_ Acquired 2 matter. 13899_ P-70 Sage destroyed. 13900_ K-01 Serf collects debris. 13905_ /VPH>&GNX2 FW7TR2NCBS& 13905_ Acquired Antigrav System. 13910_ K-01 Serf collects debris. 13910_ R-10 Processor collects Antigrav System. 13911_ Acquired 4 matter. 13914_ K-01 Serf collects debris. 13923_ Acquired Imp. Gyrokinetic Inverter. 13925_ System corrupted: Energy discharge (-29). 13929_ K-01 Serf collects debris. 13937_ Penetrated by Slug. 13938_ K-01 Serf collects debris. 13940_ U-05 Engineer builds a Wall. 13940_ Penetrated by Slug. Map ----- +----------------------------------------------------+ | ???????????????????????????????? | | #??????????????????????????????????? | | #??????????????????????????????????? | | #??????????????????????????????????? | | % %%% #??????????????????????????????????? | | ####/##########??????????????????????????????????? | | ## %% #?????????????????????????????????????? | | ## %% """ #??????????##############?????????????? | | ## % """ #??????????# #?????????????? | | ##""" """ #??????????# #?????????????? | | ##"R ######?????# #?????????????? | | ##""" # ?????# #?????????????? | | ## !%% # ""????# #?????????????? | | #######+#### [ ""????# #?????????????? | | % # """"#?# #?????????????? | | ^ % #! """"#?# #?????????????? | | """ % # """"#?# #???########### | | ^ ^ ""F"" # """"#?# #???# | | ^ "" " !# """"#?# #???# | | %# ### #???# """ """ | | ^ ###+#####;;;##;###;####+##### """ """ | | """ """ uu ; """ """ | | """ """ k g # | | """ """ k % [ ; """ """ | | h ; """ """ | | @ R # """ """ | | ########+##########;h ##;; R # | | ??# #??## #### ; | | ??# #???# #??# % # | | ??# #???# #??# ######;;+########### | | ??# """ """ #???# #??# #??? ?????????? | | ??# """ """ #???# #??# +? ! ????????? | | ??# """ """ #???# #??# # ???????? | | ??# #???# #??# # """ """ ??????? | | ??# """ """ #???# #??# + """ """ ??????? | | ??#????" "???? #???# #??### """ """ """??????? | | ???????" "?????#???# #????#?? ""???????? | | ??????? ?????????# #???????"" ??? ????????? | | ??????? ?????????# #???????"" ????"????????? | | ????????#??????????# #????????" ?????????????? | | ???????????????????###+###????????? ?????????????? | | ?????????????????????? ??????????????????????????? | | ?????????????????????????????????????????????????? | | ?????????????????????????????????????????????????? | | ?????????????????????????????????????????????????? | | ?????????????????????????????????????????????????? | | ?????????????????????????????????????????????????? | | ?????????????????????????????????????????????????? | | ?????????????????????????????????????????????????? | | ?????????????????????????????????????????????????? | +----------------------------------------------------+ Best States ------------- Heat Dissipation 62 Energy Generation 41 Energy Capacity 580 Matter Stores 300 Matter Capacity 300 Sight Range 22 Robot Scan Range 15 Terrain Scan Range 16 Terrain Scan Density 10 Armor Coverage 600 Phase Shifting 10 Evasion (%) 54 Targeting Accuracy 8 Recoil Reduction 4 Offensive Hacking 24 Relay Coupler Types 1 Relay Coupler Value 51 Item Schematics ----------------- Remote Force Field | -5/Hub_04(d) | Hacked Robot Schematics ------------------ None Fabricated ------------ Nothing Repaired ---------- Imp. Sensor Array | 36% | -5/Factory Studied --------- None Alien Tech Used ----------------- None Achievements -------------- None Challenges ------------ None Game ------ Seed MiningTerrorTorch Manual? 0 Play Time 01:16:42 Cumulative 147.1 hours Start 2026.04.20 @ 17:22:27 End 2026.04.20 @ 18:37:56 Sessions 1 Manual Loads 0 Difficulty Rogue Special Mode None Game No. 225 Rogue 225 Adventurer 0 Explorer 0 Win Type - Total 1 Types 1/0/0/0/0/0/0/0/0/0 Lore% 52 Gallery% 55 Achievement% 42 Wizard Run 0 Options --------- Layout 1 ASCII 0 Keyboard 1 Movement Arrows Keybinds 0 Fullscreen 1 Font 24/Smallcaps Map View 50x35 Zoom Use 0% Tactical HUD 1 Map Filters NONE Filters NONE Steam 1 RUN: e28e582b-4af1-4ac2-b2f2-04d95b6409ef